Workbook

Sheet Лист1
A1: Школа | C1: МБОУ ПМО СО "ООШ пос. Станционный-Полевской" | F1: Утвердил: | G1: должность | H1: директор
A2: Типовое примерное меню приготавливаемых блюд | G2: фамилия | H2: Козырева О.Ю.
A3: Возрастная категория | E3: 7-11 лет | G3: дата | H3: 20 | I3: 4 | J3: 2026
H4: день | I4: месяц | J4: год
A5: Неделя | B5: День недели | C5: Прием пищи | D5: Раздел меню | E5: Блюда | F5: Вес блюда, г | G5: Белки | H5: Жиры | I5: Углеводы | J5: Калорийность | K5: № рецептуры | L5: Цена
A6: 1 | B6: 1 | C6: Завтрак | D6: гор.блюдо | E6: Каша пшеничная молочная жидкая с маслом сливочным | F6: 240 | G6: 14.01 | H6: 13 | I6: 42.34 | J6: 333.4 | K6: 1013
D8: гор.напиток | E8: Чай с лимоном | F8: 200 | G8: 0.06 | I8: 15.16 | J8: 59.9 | K8: 686
D9: хлеб бел. | E9: Хлеб пшеничный | F9: 25 | G9: 2.03 | I9: 12.2 | J9: 60.5 | K9: 894.01
D10: фрукты
D11: хлеб | E11: Бутерброд с повидлом | F11: 40 | G11: 2.15 | H11: 1 | I11: 22.19 | J11: 103.4 | K11: 1046
D13: итого | F13: =SUM(F6:F12) -> 505 | G13: =SUM(G6:G12) -> 18.25 | H13: =SUM(H6:H12) -> 14 | I13: =SUM(I6:I12) -> 91.89 | J13: =SUM(J6:J12) -> 557.2 | L13: 125
A14: =A6 -> 1 | B14: =B6 -> 1 | C14: Обед | D14: закуска
D15: 1 блюдо | E15: Суп с вермишелью | F15: 200 | G15: 3.54 | H15: 4 | I15: 13.95 | J15: 80.7 | K15: 1039
D16: 2 блюдо | E16: Плов со свининой | F16: 250 | G16: 20.12 | H16: 46 | I16: 60.98 | J16: 639.3 | K16: 1018
D17: гарнир
D18: напиток | E18: Чай с сахаром | F18: 200 | I18: 16 | J18: 63.8 | K18: 1188
D19: хлеб бел. | E19: Хлеб пшеничный | F19: 25 | G19: 2.03 | I19: 12.2 | J19: 60.5 | K19: 894.01
D20: хлеб черн. | E20: Хлеб ржаной | F20: 25 | G20: 2.13 | H20: 1 | I20: 12.13 | J20: 64.8 | K20: 1147
D21: 1 блюдо | E21: Мясо кур отварное (для первых блюд) | F21: 5 | G21: 1.15 | H21: 1 | I21: 0.04 | J21: 11.8 | K21: 1052
D23: итого | F23: =SUM(F14:F22) -> 705 | G23: =SUM(G14:G22) -> 28.97 | H23: =SUM(H14:H22) -> 52 | I23: =SUM(I14:I22) -> 115.3 | J23: =SUM(J14:J22) -> 920.9 | L23: 162
A24: =A6 -> 1 | B24: =B6 -> 1 | C24: Итого за день: | F24: =F13+F23 -> 1210 | G24: =G13+G23 -> 47.22 | H24: =H13+H23 -> 66 | I24: =I13+I23 -> 207.19 | J24: =J13+J23 -> 1478.1 | L24: =L13+L23 -> 287
A25: 1 | B25: 2 | C25: Завтрак | D25: гор.блюдо | E25: Каша рисовая молочная жидкая с маслом сливочным | F25: 200 | G25: 8.95 | H25: 11 | I25: 31.68 | J25: 213.5 | K25: 235.05
D26: булочное | E26: Булочка школьная | F26: 60 | G26: 11.04 | H26: 5 | I26: 43.36 | J26: 262.6 | K26: 455
D27: гор.напиток | E27: Чай с сахаром | F27: 200 | I27: 16 | J27: 63.8 | K27: 1188
D28: хлеб бел. | E28: Хлеб пшеничный | F28: 40 | G28: 3.24 | I28: 19.52 | J28: 96.8 | K28: 894.01
D29: фрукты
D32: итого | F32: =SUM(F25:F31) -> 500 | G32: =SUM(G25:G31) -> 23.23 | H32: =SUM(H25:H31) -> 16 | I32: =SUM(I25:I31) -> 110.56 | J32: =SUM(J25:J31) -> 636.7 | L32: 125
A33: =A25 -> 1 | B33: =B25 -> 2 | C33: Обед | D33: закуска
D34: 1 блюдо | E34: Суп картофельный с бобовыми | F34: 200 | G34: 4.7 | H34: 4 | I34: 17.18 | J34: 133.3 | K34: 139
D35: 1 блюдо | E35: Мясо кур отварное (для первых блюд) | F35: 5 | G35: 1.15 | H35: 1 | I35: 0.04 | J35: 11.8 | K35: 1052
D36: 2 блюдо | E36: Биточек куриный | F36: 90 | G36: 16.74 | H36: 18 | I36: 4.41 | J36: 191.7 | K36: 1308.02
D37: гарнир | E37: Каша гречневая рассыпчатая | F37: 150 | G37: 9.32 | H37: 6 | I37: 48.62 | J37: 284.6 | K37: 998
D38: напиток | E38: Компот из смеси сухофруктов | F38: 200 | G38: 0.35 | I38: 24.36 | J38: 101.7 | K38: 928
D39: хлеб бел. | E39: Хлеб пшеничный | F39: 25 | G39: 2.03 | I39: 12.2 | J39: 60.5 | K39: 894.01
D40: хлеб черн. | E40: Хлеб ржаной | F40: 25 | G40: 2.13 | H40: 1 | I40: 12.13 | J40: 64.8 | K40: 1147
D41: сладкое
D42: хлеб
D44: 2 блюдо | E44: Соус сметанный | F44: 20 | G44: 0.34 | H44: 2 | I44: 1.35 | J44: 20.6 | K44: 600
D45: итого | F45: =SUM(F33:F44) -> 715 | G45: =SUM(G33:G44) -> 36.76 | H45: =SUM(H33:H44) -> 32 | I45: =SUM(I33:I44) -> 120.29 | J45: =SUM(J33:J44) -> 869 | L45: 162
A46: =A25 -> 1 | B46: =B25 -> 2 | C46: Итого за день: | F46: =F32+F45 -> 1215 | G46: =G32+G45 -> 59.99 | H46: =H32+H45 -> 48 | I46: =I32+I45 -> 230.85 | J46: =J32+J45 -> 1505.7 | L46: =L32+L45 -> 287
A47: 1 | B47: 3 | C47: Завтрак | D47: гор.блюдо | E47: Каша овсяная Геркулес жидкая молочная с маслом сливочным | F47: 220 | G47: 7.4 | H47: 10 | I47: 31.67 | J47: 243.6 | K47: 850
D48: хлеб | E48: Бутерброд с маслом сливочным | F48: 40 | G48: 2.11 | H48: 12 | I48: 10.88 | J48: 184 | K48: 808
D49: гор.напиток | E49: Чай с сахаром | F49: 200 | I49: 16 | J49: 63.8 | K49: 1188
D50: хлеб бел. | E50: Хлеб пшеничный | F50: 40 | G50: 3.24 | I50: 19.52 | J50: 96.8 | K50: 894.01
D51: фрукты
D52: хлеб черн.
D54: итого | F54: =SUM(F47:F53) -> 500 | G54: =SUM(G47:G53) -> 12.75 | H54: =SUM(H47:H53) -> 22 | I54: =SUM(I47:I53) -> 78.07 | J54: =SUM(J47:J53) -> 588.2 | L54: 125
A55: =A47 -> 1 | B55: =B47 -> 3 | C55: Обед | D55: закуска | E55: Салат из белокочанной капусты с огурцом, Здоровье | F55: 60 | G55: 0.9 | H55: 3 | I55: 5.47 | J55: 53.4 | K55: 992
D56: 1 блюдо | E56: Рассольник ленинградский со сметаной | F56: 200 | G56: 2.16 | H56: 5 | I56: 14.24 | J56: 111.3 | K56: 1030
D57: 2 блюдо | E57: Тефтели мясные | F57: 80 | G57: 9.6 | H57: 8 | J57: 229.6 | K57: 1744
D58: гарнир | E58: Макаронные изделия отварные с маслом растительным | F58: 150 | G58: 6.34 | H58: 4 | I58: 37.87 | J58: 218.5 | K58: 516
D59: напиток | E59: Напиток из плодов шиповника | F59: 200 | G59: 0.68 | I59: 27.62 | J59: 128.6 | K59: 705
D60: хлеб бел. | E60: Хлеб пшеничный | F60: 25 | G60: 2.03 | I60: 12.2 | J60: 60.5 | K60: 894.01
D61: хлеб черн. | E61: Хлеб ржаной | F61: 25 | G61: 2.13 | H61: 1 | I61: 12.13 | J61: 64.8 | K61: 1147
D63: 1 блюдо | E63: Мясо кур отварное (для первых блюд) | F63: 5 | G63: 1.15 | H63: 1 | I63: 0.04 | J63: 11.8 | K63: 1052
D64: 2 блюдо | E64: Соус томатный | F64: 20 | G64: 0.12 | H64: 4 | I64: 1.16 | J64: 11.1 | K64: 1126
D65: итого | F65: =SUM(F55:F64) -> 765 | G65: =SUM(G55:G64) -> 25.11 | H65: =SUM(H55:H64) -> 26 | I65: =SUM(I55:I64) -> 110.73 | J65: =SUM(J55:J64) -> 889.6 | L65: 162
A66: =A47 -> 1 | B66: =B47 -> 3 | C66: Итого за день: | F66: =F54+F65 -> 1265 | G66: =G54+G65 -> 37.86 | H66: =H54+H65 -> 48 | I66: =I54+I65 -> 188.8 | J66: =J54+J65 -> 1477.8 | L66: =L54+L65 -> 287
A67: 1 | B67: 4 | C67: Завтрак | D67: гор.блюдо | E67: Каша ячневая молочная жидкая с маслом сливочным | F67: 200 | G67: 9.78 | H67: 9 | I67: 37.9 | J67: 271.7 | K67: 1111
D69: гор.напиток | E69: Чай с лимоном | F69: 200 | G69: 0.06 | I69: 15.16 | J69: 59.9 | K69: 686
D70: хлеб | E70: Бутерброд с сыром | F70: 40 | G70: 8.58 | H70: 7 | I70: 20.71 | J70: 177.3 | K70: 810
D71: хлеб черн.
D72: фрукты | E72: Яблоки свежие | F72: 110 | G72: 0.44 | I72: 10.78 | J72: 90.7 | K72: 976
D73: итого | F73: =SUM(F67:F72) -> 550 | G73: =SUM(G67:G72) -> 18.86 | H73: =SUM(H67:H72) -> 16 | I73: =SUM(I67:I72) -> 84.55 | J73: =SUM(J67:J72) -> 599.6 | L73: 125
A74: =A67 -> 1 | B74: =B67 -> 4 | C74: Обед | D74: закуска
D75: 1 блюдо | E75: Борщ с капустой, картофелем и сметаной | F75: 200 | G75: 1.52 | H75: 5 | I75: 10.94 | J75: 199.5 | K75: 1021
D76: 2 блюдо | E76: Шницель из мяса птицы | F76: 90 | G76: 33.04 | H76: 6 | I76: 19.99 | J76: 250.1 | K76: 1319.01
D77: гарнир | E77: Пюре картофельное | F77: 150 | G77: 3.26 | H77: 6 | I77: 25.03 | J77: 187 | K77: 995
D78: напиток | E78: Чай с сахаром | F78: 200 | I78: 16 | J78: 63.8 | K78: 1188
D79: хлеб бел. | E79: Хлеб пшеничный | F79: 30 | G79: 3.43 | I79: 16.64 | J79: 80.28 | K79: 894.01
D80: хлеб черн. | E80: Хлеб ржаной | F80: 25 | G80: 2.13 | H80: 1 | I80: 12.13 | J80: 64.8 | K80: 1147
D83: 1 блюдо | E83: Мясо кур отварное (для первых блюд) | F83: 5 | G83: 1.15 | H83: 1 | I83: 0.04 | J83: 11.8 | K83: 1052
D84: итого | F84: =SUM(F74:F83) -> 700 | G84: =SUM(G74:G83) -> 44.53 | H84: =SUM(H74:H83) -> 19 | I84: =SUM(I74:I83) -> 100.77 | J84: =SUM(J74:J83) -> 857.28 | L84: 162
A85: =A67 -> 1 | B85: =B67 -> 4 | C85: Итого за день: | F85: =F73+F84 -> 1250 | G85: =G73+G84 -> 63.39 | H85: =H73+H84 -> 35 | I85: =I73+I84 -> 185.32 | J85: =J73+J84 -> 1456.88 | L85: =L73+L84 -> 287
A86: 1 | B86: 5 | C86: Завтрак | D86: гор.блюдо | E86: Каша пшеничная молочная жидкая с маслом сливочным | F86: 220 | G86: 12.01 | H86: 11 | I86: 39.34 | J86: 304.4 | K86: 1013
D87: сладкое | E87: Оладьи с топпингом | F87: 70 | G87: 2.67 | H87: 5 | I87: 6.21 | J87: 189.9 | K87: 1330.23
D88: гор.напиток | E88: Чай с сахаром | F88: 200 | I88: 16 | J88: 63.8 | K88: 1188
D89: хлеб бел. | E89: Хлеб пшеничный | F89: 30 | G89: 2.43 | I89: 14.64 | J89: 72.6 | K89: 894.01
D90: фрукты
D91: хлеб черн.
D93: итого | F93: =SUM(F86:F92) -> 520 | G93: =SUM(G86:G92) -> 17.11 | H93: =SUM(H86:H92) -> 16 | I93: =SUM(I86:I92) -> 76.19 | J93: =SUM(J86:J92) -> 630.7 | L93: 125
A94: =A86 -> 1 | B94: =B86 -> 5 | C94: Обед | D94: закуска
D95: 1 блюдо | E95: Щи из свежей капусты с картофелем со сметаной | F95: 200 | G95: 1.52 | H95: 5 | I95: 7.31 | J95: 156 | K95: 124
D96: 2 блюдо | E96: Суфле из печени | F96: 100 | G96: 12.6 | H96: 13 | I96: 3.5 | J96: 233.4 | K96: 866
D97: 2 блюдо | E97: Соус сметанный | F97: 20 | G97: 0.34 | H97: 2 | I97: 1.35 | J97: 20.6 | K97: 600
D98: гарнир | E98: Рис припущенный | F98: 150 | G98: 3.6 | H98: 6 | I98: 37.05 | J98: 220.4 | K98: 512
D99: напиток | E99: Компот из свежих яблок | F99: 200 | G99: 0.11 | I99: 23.88 | J99: 99.1 | K99: 912
D100: хлеб бел. | E100: Хлеб пшеничный | F100: 25 | G100: 2.03 | I100: 12.2 | J100: 60.5 | K100: 894.01
D101: хлеб черн. | E101: Хлеб ржаной | F101: 25 | G101: 2.13 | H101: 1 | I101: 12.13 | J101: 64.8 | K101: 1147
D102: 1 блюдо | E102: Мясо кур отварное (для первых блюд) | F102: 5 | G102: 1.15 | H102: 1 | I102: 0.04 | J102: 11.8 | K102: 1052
D104: итого | F104: =SUM(F94:F103) -> 725 | G104: =SUM(G94:G103) -> 23.48 | H104: =SUM(H94:H103) -> 28 | I104: =SUM(I94:I103) -> 97.46 | J104: =SUM(J94:J103) -> 866.6 | L104: 162
A105: =A86 -> 1 | B105: =B86 -> 5 | C105: Итого за день: | F105: =F93+F104 -> 1245 | G105: =G93+G104 -> 40.59 | H105: =H93+H104 -> 44 | I105: =I93+I104 -> 173.65 | J105: =J93+J104 -> 1497.3 | L105: =L93+L104 -> 287
A106: 2 | B106: 1 | C106: Завтрак | D106: гор.блюдо | E106: Каша рисовая молочная жидкая с маслом сличным | F106: 200 | G106: 8.95 | H106: 11 | I106: 31.68 | J106: 213.5 | K106: 235.05
D108: гор.напиток | E108: Чай с сахаром | F108: 200 | I108: 16 | J108: 63.8 | K108: 1188
D109: хлеб бел. | E109: Хлеб пшеничный | F109: 40 | G109: 3.24 | I109: 19.52 | J109: 96.8 | K109: 894.01
D110: фрукты
D111: хлеб черн.
D112: сладкое | E112: Печенье детское | F112: 60 | G112: 4.5 | H112: 6 | I112: 34 | J112: 244.2 | K112: 1141.09
D113: итого | F113: =SUM(F106:F112) -> 500 | G113: =SUM(G106:G112) -> 16.69 | H113: =SUM(H106:H112) -> 17 | I113: =SUM(I106:I112) -> 101.2 | J113: =SUM(J106:J112) -> 618.3 | L113: 125
A114: =A106 -> 2 | B114: =B106 -> 1 | C114: Обед | D114: закуска
D115: 1 блюдо | E115: Суп-пюре из гороха | F115: 200 | G115: 6.17 | H115: 2 | I115: 18.06 | J115: 113.3 | K115: 1049
D116: 2 блюдо | E116: Фигурки рыбные | F116: 120 | G116: 14.64 | H116: 21 | I116: 7.23 | J116: 279.1 | K116: 1699.05
D117: гарнир | E117: Макаронные изделия отварные с маслом | F117: 150 | G117: 6.34 | H117: 4 | I117: 37.87 | J117: 218.5 | K117: 516
D118: напиток | E118: Морс ягодный | F118: 200 | G118: 0.24 | I118: 27.7 | J118: 114.3 | K118: 1242
D119: хлеб бел. | E119: Хлеб пшеничный | F119: 25 | G119: 2.03 | I119: 12.2 | J119: 60.5 | K119: 894.01
D120: хлеб черн. | E120: Хлеб ржаной | F120: 25 | G120: 2.13 | H120: 1 | I120: 12.13 | J120: 64.8 | K120: 1147
D121: 2 блюдо | E121: Соус сметанный с томатом | F121: 20 | G121: 0.28 | H121: 1 | I121: 1.35 | J121: 15.8 | K121: 600.01
D122: хлеб | E122: Гренки из пшеничного хлеба | F122: 10 | G122: 1.3 | I122: 7.81 | J122: 40 | K122: 943
D123: итого | F123: =SUM(F114:F122) -> 750 | G123: =SUM(G114:G122) -> 33.13 | H123: =SUM(H114:H122) -> 29 | I123: =SUM(I114:I122) -> 124.35 | J123: =SUM(J114:J122) -> 906.3 | L123: 162
A124: =A106 -> 2 | B124: =B106 -> 1 | C124: Итого за день: | F124: =F113+F123 -> 1250 | G124: =G113+G123 -> 49.82 | H124: =H113+H123 -> 46 | I124: =I113+I123 -> 225.55 | J124: =J113+J123 -> 1524.6 | L124: =L113+L123 -> 287
A125: 2 | B125: 2 | C125: Завтрак | D125: гор.блюдо | E125: Каша гречневая молочная с маслом сливочным | F125: 200 | G125: 7.2 | H125: 8 | I125: 31.38 | J125: 240 | K125: 823
D126: булочное | E126: Плюшка Московская | F126: 80 | G126: 9.36 | H126: 9 | I126: 38.22 | J126: 269.8 | K126: 677.25
D127: гор.напиток | E127: Чай с сахаром | F127: 200 | I127: 16 | J127: 63.8 | K127: 1188
D128: хлеб бел. | E128: Хлеб пшеничный | F128: 20 | G128: 1.62 | I128: 9.76 | J128: 48.4 | K128: 894.01
D129: фрукты
D130: хлеб
D133: итого | F133: =SUM(F125:F132) -> 500 | G133: =SUM(G125:G132) -> 18.18 | H133: =SUM(H125:H132) -> 17 | I133: =SUM(I125:I132) -> 95.36 | J133: =SUM(J125:J132) -> 622 | L133: 125
A134: =A125 -> 2 | B134: =B125 -> 2 | C134: Обед | D134: закуска
D135: 1 блюдо | E135: Рассольник домашний со сметаной | F135: 200 | G135: 1.82 | H135: 5 | I135: 11.08 | J135: 196.7 | K135: 1175
D136: 2 блюдо | E136: Плов с мясом птицы | F136: 250 | G136: 15.72 | H136: 15 | I136: 48.42 | J136: 386.8 | K136: 1020
D137: гарнир
D138: напиток | E138: Компот из смеси сухофруктов | F138: 200 | G138: 0.35 | I138: 24.36 | J138: 101.7 | K138: 928
D139: хлеб бел. | E139: Хлеб пшеничный | F139: 25 | G139: 2.03 | I139: 12.2 | J139: 60.5 | K139: 807.01
D140: хлеб черн. | E140: Хлеб ржаной | F140: 25 | G140: 2.13 | H140: 1 | I140: 12.13 | J140: 64.8 | K140: 1147
D141: 1 блюдо | E141: Мясо кур отварное (для первых блюд) | F141: 5 | G141: 1.15 | H141: 1 | I141: 0.04 | J141: 11.8 | K141: 1052
D143: итого | F143: =SUM(F134:F142) -> 705 | G143: =SUM(G134:G142) -> 23.2 | H143: =SUM(H134:H142) -> 22 | I143: =SUM(I134:I142) -> 108.23 | J143: =SUM(J134:J142) -> 822.3 | L143: 162
A144: =A125 -> 2 | B144: =B125 -> 2 | C144: Итого за день: | F144: =F133+F143 -> 1205 | G144: =G133+G143 -> 41.38 | H144: =H133+H143 -> 39 | I144: =I133+I143 -> 203.59 | J144: =J133+J143 -> 1444.3 | L144: =L133+L143 -> 287
A145: 2 | B145: 3 | C145: Завтрак | D145: гор.блюдо | E145: Каша пшеничная молочная жидкая с маслом сливочным | F145: 220 | G145: 12.01 | H145: 11 | I145: 39.34 | J145: 304.4 | K145: 1013
D146: хлеб | E146: Бутерброд с маслом сливочным | F146: 40 | G146: 2.11 | H146: 12 | I146: 10.88 | J146: 184 | K146: 808
D147: гор.напиток | E147: Чай с сахаром | F147: 200 | I147: 16 | J147: 63.8 | K147: 1188
D148: хлеб бел. | E148: Хлеб пшеничный | F148: 40 | G148: 3.24 | I148: 19.52 | J148: 96.8 | K148: 894.01
D149: фрукты
D150: сладкое
D152: итого | F152: =SUM(F145:F151) -> 500 | G152: =SUM(G145:G151) -> 17.36 | H152: =SUM(H145:H151) -> 23 | I152: =SUM(I145:I151) -> 85.74 | J152: =SUM(J145:J151) -> 649 | L152: 125
A153: =A145 -> 2 | B153: =B145 -> 3 | C153: Обед | D153: закуска
D154: 1 блюдо | E154: Борщ с капустой, картофелем и сметаной | F154: 210 | G154: 1.52 | H154: 5 | I154: 12.94 | J154: 207.5 | K154: 1021
D155: 2 блюдо | E155: Птица запеченная | F155: 90 | G155: 20.68 | H155: 35 | I155: 1.1 | J155: 340.9 | K155: 1237
D156: гарнир | E156: Пюре картофельное | F156: 150 | G156: 3.26 | H156: 5 | I156: 22.03 | J156: 147 | K156: 995
D157: напиток | E157: Чай с сахаром | F157: 200 | I157: 16 | J157: 63.8 | K157: 1188
D158: хлеб бел. | E158: Хлеб пшеничный | F158: 25 | G158: 2.03 | I158: 12.2 | J158: 60.5 | K158: 894.01
D159: хлеб черн. | E159: Хлеб ржаной | F159: 25 | G159: 2.13 | H159: 1 | I159: 12.13 | J159: 64.8 | K159: 1147
D160: сладкое
D161: 1 блюдо | E161: Мясо кур отварное (для первых блюд) | F161: 5 | G161: 1.15 | H161: 1 | I161: 0.04 | J161: 11.8 | K161: 1052
D163: итого | F163: =SUM(F153:F162) -> 705 | G163: =SUM(G153:G162) -> 30.77 | H163: =SUM(H153:H162) -> 47 | I163: =SUM(I153:I162) -> 76.44 | J163: =SUM(J153:J162) -> 896.3 | L163: 162
A164: =A145 -> 2 | B164: =B145 -> 3 | C164: Итого за день: | F164: =F152+F163 -> 1205 | G164: =G152+G163 -> 48.13 | H164: =H152+H163 -> 70 | I164: =I152+I163 -> 162.18 | J164: =J152+J163 -> 1545.3 | L164: =L152+L163 -> 287
A165: 2 | B165: 4 | C165: Завтрак | D165: гор.блюдо | E165: Макаронные изделия запеченные с сыром | F165: 180 | G165: 12.03 | H165: 16 | I165: 43.75 | J165: 363.6 | K165: 334
D167: гор.напиток | E167: Чай с сахаром | F167: 200 | I167: 16 | J167: 63.8 | K167: 1188
D168: хлеб бел. | E168: Хлеб пшеничный | F168: 25 | G168: 2.03 | I168: 12.2 | J168: 60.5 | K168: 894.01
D169: хлеб черн.
D170: фрукты | E170: Яблоки свежие | F170: 110 | G170: 0.44 | I170: 10.78 | J170: 90.7 | K170: 976
D172: итого | F172: =SUM(F165:F171) -> 515 | G172: =SUM(G165:G171) -> 14.5 | H172: =SUM(H165:H171) -> 16 | I172: =SUM(I165:I171) -> 82.73 | J172: =SUM(J165:J171) -> 578.6 | L172: 125
A173: =A165 -> 2 | B173: =B165 -> 4 | C173: Обед | D173: 1 блюдо | E173: Суп крестьянский с крупой и сметаной | F173: 200 | G173: 5.04 | H173: 8.5 | I173: 23.73 | J173: 193.95 | K173: 1058
D174: закуска | E174: Салат из белокочанной капусты с огурцом, Здоровье | F174: 60 | G174: 0.9 | H174: 3 | I174: 5.47 | J174: 53.4 | K174: 992
D175: 2 блюдо | E175: Биточек куриный | F175: 90 | G175: 16.74 | H175: 18 | I175: 4.41 | J175: 211.7 | K175: 1308.02
D176: гарнир | E176: Рис припущенный | F176: 150 | G176: 3.6 | H176: 6 | I176: 37.05 | J176: 220.4 | K176: 512
D177: напиток | E177: Напиток из плодов шиповника | F177: 200 | G177: 0.68 | I177: 27.62 | J177: 128.6 | K177: 705
D178: хлеб бел. | E178: Хлеб пшеничный | F178: 20 | G178: 1.62 | I178: 9.76 | J178: 48.4 | K178: 894.01
D179: хлеб черн. | E179: Хлеб ржаной | F179: 20 | G179: 1.7 | H179: 1 | I179: 9.7 | J179: 51.8 | K179: 1147
D180: 1 блюдо | E180: Мясо кур отварное (для первых блюд) | F180: 5 | G180: 1.15 | H180: 1 | I180: 0.04 | J180: 11.8 | K180: 1052
D182: 2 блюдо | E182: Соус томатный | F182: 20 | G182: 0.12 | H182: 4 | I182: 1.16 | J182: 11.1 | K182: 1126
D183: итого | F183: =SUM(F173:F182) -> 765 | G183: =SUM(G173:G182) -> 31.55 | H183: =SUM(H173:H182) -> 41.5 | I183: =SUM(I173:I182) -> 118.94 | J183: =SUM(J173:J182) -> 931.15 | L183: 162
A184: =A165 -> 2 | B184: =B165 -> 4 | C184: Итого за день: | F184: =F172+F183 -> 1280 | G184: =G172+G183 -> 46.05 | H184: =H172+H183 -> 57.5 | I184: =I172+I183 -> 201.67 | J184: =J172+J183 -> 1509.75 | L184: =L172+L183 -> 287
A185: 2 | B185: 5 | C185: Завтрак | D185: гор.блюдо | E185: Каша ячневая молочная жидкая с маслом сливочным | F185: 220 | G185: 11.98 | H185: 10 | I185: 39.7 | J185: 296.7 | K185: 1111
D186: хлеб | E186: Бутерброд с повидлом | F186: 40 | G186: 2.15 | H186: 1 | I186: 22.19 | J186: 103.4 | K186: 1046
D187: гор.напиток | E187: Чай с лимоном | F187: 200 | G187: 0.09 | I187: 15.16 | J187: 79.8 | K187: 483
D188: хлеб бел. | E188: Хлеб пшеничный | F188: 40 | G188: 3.24 | I188: 19.52 | J188: 96.8 | K188: 894.01
D189: фрукты
D192: итого | F192: =SUM(F185:F191) -> 500 | G192: =SUM(G185:G191) -> 17.46 | H192: =SUM(H185:H191) -> 11 | I192: =SUM(I185:I191) -> 96.57 | J192: =SUM(J185:J191) -> 576.7 | L192: 125
A193: =A185 -> 2 | B193: =B185 -> 5 | C193: Обед | D193: закуска
D194: 1 блюдо | E194: Суп-лапша на курином бульоне | F194: 200 | G194: 4.38 | H194: 5 | I194: 12.24 | J194: 130 | K194: 1015
D195: 2 блюдо | E195: Гуляш из мяса свинины | F195: 100 | G195: 11.17 | H195: 24 | I195: 3.61 | J195: 236.3 | K195: 437.06
D196: гарнир | E196: Каша гречневая рассыпчатая | F196: 150 | G196: 9.32 | H196: 6 | I196: 48.62 | J196: 284.6 | K196: 998
D197: напиток | E197: Чай с сахаром | F197: 200 | I197: 16 | J197: 63.8 | K197: 1188
D198: хлеб бел. | E198: Хлеб пшеничный | F198: 25 | G198: 2.03 | I198: 12.2 | J198: 60.5 | K198: 894.01
D199: хлеб черн. | E199: Хлеб ржаной | F199: 25 | G199: 2.13 | H199: 1 | I199: 12.13 | J199: 64.8 | K199: 1147
D200: 1 блюдо | E200: Мясо кур отварное (для первых блюд) | F200: 5 | G200: 1.15 | H200: 1 | I200: 0.04 | J200: 11.8 | K200: 1052
D203: итого | F203: =SUM(F193:F202) -> 705 | G203: =SUM(G193:G202) -> 30.18 | H203: =SUM(H193:H202) -> 37 | I203: =SUM(I193:I202) -> 104.84 | J203: =SUM(J193:J202) -> 851.8 | L203: 162
A204: =A185 -> 2 | B204: =B185 -> 5 | C204: Итого за день: | F204: =F192+F203 -> 1205 | G204: =G192+G203 -> 47.64 | H204: =H192+H203 -> 48 | I204: =I192+I203 -> 201.41 | J204: =J192+J203 -> 1428.5 | L204: =L192+L203 -> 287
C205: Среднее значение за период: | F205: =(F24+F46+F66+F85+F105+F124+F144+F164+F184+F204)/(IF(F24=0, 0, 1)+IF(F46=0, 0, 1)+IF(F66=0, 0, 1)+IF(F85=0, 0, 1)+IF(F105=0, 0, 1)+IF(F124=0, 0, 1)+IF(F144=0, 0, 1)+IF(F164=0, 0, 1)+IF(F184=0, 0, 1)+IF(F204=0, 0, 1)) -> 1233 | G205: =(G24+G46+G66+G85+G105+G124+G144+G164+G184+G204)/(IF(G24=0, 0, 1)+IF(G46=0, 0, 1)+IF(G66=0, 0, 1)+IF(G85=0, 0, 1)+IF(G105=0, 0, 1)+IF(G124=0, 0, 1)+IF(G144=0, 0, 1)+IF(G164=0, 0, 1)+IF(G184=0, 0, 1)+IF(G204=0, 0, 1)) -> 48.207 | H205: =(H24+H46+H66+H85+H105+H124+H144+H164+H184+H204)/(IF(H24=0, 0, 1)+IF(H46=0, 0, 1)+IF(H66=0, 0, 1)+IF(H85=0, 0, 1)+IF(H105=0, 0, 1)+IF(H124=0, 0, 1)+IF(H144=0, 0, 1)+IF(H164=0, 0, 1)+IF(H184=0, 0, 1)+IF(H204=0, 0, 1)) -> 50.15 | I205: =(I24+I46+I66+I85+I105+I124+I144+I164+I184+I204)/(IF(I24=0, 0, 1)+IF(I46=0, 0, 1)+IF(I66=0, 0, 1)+IF(I85=0, 0, 1)+IF(I105=0, 0, 1)+IF(I124=0, 0, 1)+IF(I144=0, 0, 1)+IF(I164=0, 0, 1)+IF(I184=0, 0, 1)+IF(I204=0, 0, 1)) -> 198.021 | J205: =(J24+J46+J66+J85+J105+J124+J144+J164+J184+J204)/(IF(J24=0, 0, 1)+IF(J46=0, 0, 1)+IF(J66=0, 0, 1)+IF(J85=0, 0, 1)+IF(J105=0, 0, 1)+IF(J124=0, 0, 1)+IF(J144=0, 0, 1)+IF(J164=0, 0, 1)+IF(J184=0, 0, 1)+IF(J204=0, 0, 1)) -> 1486.823 | L205: =(L24+L46+L66+L85+L105+L124+L144+L164+L184+L204)/(IF(L24=0, 0, 1)+IF(L46=0, 0, 1)+IF(L66=0, 0, 1)+IF(L85=0, 0, 1)+IF(L105=0, 0, 1)+IF(L124=0, 0, 1)+IF(L144=0, 0, 1)+IF(L164=0, 0, 1)+IF(L184=0, 0, 1)+IF(L204=0, 0, 1)) -> 287
